bitfinex/quotes_SOLUSD_20220109
["timestamp","ask_amount","ask_price","bid_price","bid_amount"]
[1641764641698,0.51,142.39,142.32,12.2925]
[1641764641895,30.39999947,142.4,142.32,12.2925]
[1641764642897,0.25,142.39,142.32,12.2925]
[1641764643096,0.25,142.39,142.32,10.5365]
[1641764644200,0.51,142.39,142.32,10.5365]
[1641764645598,0.51,142.39,142.3,1.756]
[1641764645599,0.51,142.39,142.3,12.2938]
[1641764645800,0.51,142.39,142.3,1.756]
[1641764646001,1.756,142.38,142.27,1.756]
[1641764646400,3.51,142.37,142.27,1.756]
[1641764646600,1.756,142.36,142.26,1.756]
[1641764646801,31.56169454,142.35,142.26,1.756]
[1641764647000,32.07169454,142.35,142.26,12.2968]
[1641764648200,31.82169454,142.35,142.26,12.2968]
[1641764648701,31.56169454,142.35,142.27,0.26]
[1641764648900,31.56169454,142.35,142.3,10.5384]
[1641764649202,46.7612,142.39,142.3,10.5384]
[1641764649407,0.25,142.38,142.3,10.5384]
[1641764650000,0.51,142.38,142.3,10.5384]
[1641764650202,30.4383955,142.38,142.3,10.5384]
[1641764654330,0.26,142.37,142.29,1.756]
[1641764654540,0.26,142.37,142.26,11.696]
[1641764654541,1.756,142.36,142.26,11.696]
[1641764654730,29.60294033,142.35,142.26,11.696]
[1641764654930,1.756,142.34,142.23,9.94]
[1641764655332,3.51,142.33,142.24,1.756]
[1641764655531,3.51,142.33,142.24,12.2989]
[1641764655731,3.51,142.33,142.24,1.756]
[1641764655732,29.09764015,142.32,142.24,1.756]
[1641764656129,0.25,142.33,142.24,1.756]
[1641764656530,28.6478,142.37,142.26,1.756]
[1641764656930,28.6478,142.37,142.25,28.69433902]
[1641764657133,26.10963604,142.36,142.25,28.69433902]
[1641764657331,1.756,142.35,142.25,28.69433902]
[1641764657531,5.266,142.35,142.25,28.69433902]
[1641764661336,15.811,142.35,142.25,28.69433902]
[1641764661537,23.87082586,142.35,142.25,28.69433902]
[1641764661738,9.94,142.34,142.25,28.69433902]
[1641764661938,28.71482361,142.33,142.25,24.69433902]
[1641764662140,9.94,142.32,142.25,9.04433902]
[1641764662341,2.006,142.31,142.25,9.04433902]
[1641764662541,30.08646769,142.3,142.25,9.04433902]
[1641764662738,1.756,142.29,142.25,9.04433902]
[1641764662939,5.266,142.29,142.25,0.00433902]
[1641764667445,4.766,142.29,142.25,0.00433902]
[1641764672554,15.3153,142.29,142.25,0.00433902]
[1641764672951,9.94,142.28,142.25,0.00433902]
[1641764673152,1.756,142.27,142.25,0.00433902]
[1641764673353,5.266,142.27,142.25,0.00433902]
[1641764673954,5.006,142.27,142.25,0.00433902]
[1641764675157,4.756,142.27,142.25,0.00433902]
[1641764675354,0.26,142.26,142.25,0.00433902]
[1641764676360,0.51,142.26,142.25,0.00433902]
[1641764679888,0.26,142.26,142.25,0.00433902]
[1641764682494,0.25,142.27,142.25,0.00433902]
[1641764683890,0.51,142.27,142.25,0.00433902]
[1641764685293,0.25,142.27,142.25,0.00433902]
[1641764685495,0.51,142.28,142.25,0.00433902]
[1641764685694,0.25,142.28,142.25,0.00433902]
[1641764685897,0.51,142.29,142.26,6.06439991]
[1641764686295,25.08642836,142.29,142.25,0.00433902]
[1641764686496,0.51,142.29,142.25,0.00433902]
[1641764688298,0.26,142.29,142.25,0.00433902]
[1641764689597,0.51,142.29,142.25,0.00433902]
[1641764694101,2.266,142.29,142.25,0.00433902]
[1641764698006,2.006,142.29,142.25,0.00433902]
[1641764700509,3.26,142.28,142.25,0.00433902]
[1641764700710,11.696,142.27,142.25,0.00433902]
[1641764700910,71.26,142.26,142.25,0.00433902]
[1641764701211,85.956,142.26,142.25,0.00433902]
[1641764701513,86.206,142.26,142.25,0.00433902]
[1641764702311,15.206,142.26,142.25,0.00433902]
[1641764702514,12.206,142.26,142.25,0.00433902]
[1641764702715,60.45,142.26,142.25,0.00433902]
[1641764703313,63.45,142.26,142.25,0.00433902]
[1641764703813,63.19,142.26,142.25,0.00433902]
[1641764704614,69.441,142.26,142.25,0.00433902]
[1641764705017,71.457,142.26,142.25,0.00433902]
[1641764705442,71.197,142.26,142.25,0.00433902]
[1641764705642,63.946,142.26,142.25,0.00433902]
[1641764705842,13.946,142.26,142.25,0.00433902]
[1641764706245,12.19,142.26,142.25,0.00433902]
[1641764706645,38.19,142.26,142.25,0.00433902]
[1641764706843,38.45,142.26,142.25,0.00433902]
[1641764707643,70.45,142.26,142.25,0.00433902]
[1641764707844,38.45,142.26,142.25,0.00433902]
[1641764709946,38.19,142.26,142.25,0.00433902]
[1641764710150,0.25,142.26,142.25,0.00433902]
[1641764710549,35.25,142.26,142.25,0.00433902]
[1641764711047,35.51,142.26,142.25,0.00433902]
[1641764713553,38.51,142.26,142.25,0.00433902]
[1641764716155,3.51,142.26,142.25,0.00433902]
[1641764716353,3.0,142.26,142.25,3.03653897]
[1641764716553,1.756,142.27,142.25,3.03653897]
[1641764716754,25.39185178,142.28,142.25,3.03653897]
[1641764716957,1.79405178,142.28,142.25,3.03653897]
[1641764717157,24.28012455,142.27,142.25,3.03653897]
[1641764717354,24.28012455,142.27,142.25,6.06873893]
[1641764717555,49.756,142.26,142.25,6.06873893]
[1641764717755,50.016,142.26,142.25,0.00433902]
[1641764717956,50.266,142.26,142.25,0.00433902]
[1641764718159,48.25,142.26,142.25,0.00433902]
[1641764719157,0.25,142.26,142.25,0.00433902]
[1641764719557,48.25,142.26,142.25,0.00433902]
[1641764720456,48.51,142.26,142.25,0.00433902]
[1641764720856,48.25,142.26,142.25,0.00433902]
[1641764722657,48.51,142.26,142.25,0.00433902]
[1641764723457,50.266,142.26,142.25,0.00433902]
[1641764723658,53.266,142.26,142.25,0.00433902]
[1641764724458,20.13341539,142.18,142.15,1.756]
[1641764724957,0.25,142.17,142.15,1.756]
[1641764725157,0.51,142.17,142.15,1.756]
[1641764725359,0.51,142.17,142.16,3.03219996]
[1641764725757,0.26,142.17,142.16,3.03219996]
[1641764725956,0.51,142.17,142.16,3.03219996]
[1641764726357,28.51,142.17,142.16,3.03219996]
[1641764726556,28.51,142.17,142.15,4.78819995]
[1641764726959,0.51,142.17,142.15,1.756]
[1641764727157,20.13341539,142.18,142.15,1.756]
[1641764727459,0.25,142.17,142.11,1.758]
[1641764727656,0.25,142.17,142.1,77.4866]
[1641764728663,0.25,142.17,142.1,77.5066]
[1641764728864,0.25,142.17,142.1,77.5266]
[1641764729467,20.13341539,142.18,142.1,77.5266]
[1641764729669,0.26,142.17,142.1,77.5266]
[1641764729867,20.13341539,142.18,142.11,0.26]
[1641764731068,20.13341539,142.18,142.11,10.8123]
[1641764731470,20.13341539,142.18,142.12,0.25]
[1641764731696,20.13341539,142.18,142.13,1.758]
[1641764731896,20.13341539,142.18,142.14,0.51]
[1641764732097,14.698,142.26,142.16,25.0]
[1641764732301,3.0,142.26,142.17,1.756]
[1641764732498,3.0,142.25,142.17,2.016]
[1641764732701,3.0,142.25,142.17,0.26]
[1641764732903,3.0,142.25,142.16,0.26]
[1641764733799,677.26736831,142.1,142.05,71.17412942]
[1641764734000,656.70736831,142.1,142.09,9.31439991]
[1641764734201,656.70736831,142.1,142.09,19.25439991]
[1641764734401,586.37076831,142.1,142.09,19.25439991]
[1641764734800,558.43002852,142.1,142.09,22.92652589]
[1641764735002,488.09722852,142.1,142.09,22.92652589]
[1641764735304,465.97935346,142.1,142.09,37.01505175]
[1641764735501,385.58295347,142.1,142.09,37.01505175]
[1641764736103,315.26875347,142.1,142.09,37.01505175]
[1641764736304,315.26875347,142.1,142.09,37.26505175]
[1641764736504,244.95275347,142.1,142.09,37.26505175]
[1641764736903,244.95275347,142.1,142.09,35.48422589]
[1641764737305,174.63425347,142.1,142.09,35.48422589]
[1641764737703,93.77665347,142.1,142.09,26.71635175]
[1641764738106,93.77665347,142.1,142.09,24.93552589]
[1641764738305,23.46035347,142.1,142.09,24.93552589]
[1641764738803,24.2438,142.27,142.09,24.93552589]
[1641764739004,0.26,142.26,142.1,77.1728]
[1641764739207,0.26,142.26,142.17,10.5477]
[1641764739610,34.7917,142.27,142.17,10.5477]
[1641764739811,49.76524115,142.27,142.17,10.5477]
[1641764740309,0.25,142.26,142.17,10.5477]
[1641764740710,0.25,142.26,142.18,10.8069]
[1641764740911,0.51,142.26,142.18,10.8069]
[1641764741118,62.16944115,142.27,142.18,10.8069]
[1641764741312,60.41344115,142.27,142.18,10.8069]
[1641764742312,0.25,142.26,142.18,10.8069]
[1641764742813,0.25,142.26,142.18,10.5469]
[1641764744416,0.51,142.26,142.16,20.488]
[1641764744614,0.51,142.26,142.17,3.0]
[1641764745016,0.25,142.26,142.17,3.0]
[1641764745313,0.51,142.26,142.17,3.0]
[1641764745513,0.25,142.26,142.17,3.0]
[1641764746313,36.648,142.27,142.17,13.5477]
[1641764746515,34.892,142.27,142.18,0.25]
[1641764746714,105.5306,142.3,142.18,0.25]
[1641764746917,25.5988,142.3,142.18,10.45]
[1641764747417,25.5988,142.3,142.18,12.23082586]
[1641764747816,23.35099348,142.29,142.19,3.0]
[1641764748015,23.35099348,142.29,142.2,11.956]
[1641764748217,0.25,142.28,142.2,46.8373]
[1641764748416,25.10699348,142.29,142.21,0.26]
[1641764748617,23.35099348,142.29,142.21,0.26]
[1641764749916,23.8428,142.3,142.21,0.51]
[1641764750118,102.0609,142.32,142.22,1.756]
[1641764750516,3.25,142.31,142.23,0.26]
[1641764751115,3.25,142.31,142.25,10.542]
[1641764753419,54.31573516,142.32,142.25,10.542]
[1641764753918,30.31903516,142.32,142.27,10.5405]
[1641764754120,124.7797,142.35,142.27,10.5405]
[1641764754922,124.7797,142.35,142.28,0.26]
[1641764755118,153.92619058,142.35,142.28,10.7997]
[1641764755519,75.33419058,142.35,142.28,10.7997]
[1641764756720,0.25,142.34,142.28,10.7997]
[1641764757622,75.33419058,142.35,142.28,10.7997]
[1641764758023,0.25,142.34,142.28,10.7997]
[1641764758223,75.33419058,142.35,142.28,10.7997]
[1641764759022,75.33419058,142.35,142.28,10.5397]
[1641764759222,2.266,142.34,142.25,10.5421]
[1641764760925,12.8081,142.34,142.25,10.5421]
[1641764761726,12.8081,142.34,142.23,10.5429]
[1641764761927,25.9258,142.33,142.23,10.5429]
[1641764762128,10.5444,142.31,142.2,9.94]
[1641764762327,1.756,142.3,142.21,3.0]
[1641764762528,24.41203143,142.29,142.2,9.94]
[1641764762827,24.41203143,142.29,142.22,10.5443]
[1641764763030,0.51,142.28,142.22,10.5443]
[1641764763229,24.41203143,142.29,142.22,10.5443]
[1641764763430,1.756,142.32,142.22,10.5443]
[1641764763828,0.51,142.31,142.22,10.5443]
[1641764764229,0.25,142.31,142.22,10.5443]
[1641764764430,1.756,142.31,142.23,0.26]
[1641764764629,0.51,142.32,142.23,0.26]
[1641764764830,0.51,142.32,142.23,0.51]
[1641764765231,0.26,142.32,142.23,0.51]
[1641764765756,22.9977,142.35,142.24,1.78082586]
[1641764765959,22.9977,142.35,142.25,0.51]
[1641764766158,22.9977,142.35,142.26,9.94]
[1641764766456,243.7786,142.39,142.27,0.51]
[1641764766659,269.17756288,142.39,142.27,2.29082586]
[1641764766958,0.25,142.38,142.31,10.5376]
[1641764767156,0.25,142.38,142.28,1.78082586]
[1641764767157,2.006,142.38,142.28,1.78082586]
[1641764767358,0.25,142.38,142.28,1.78082586]
[1641764767958,3.51,142.38,142.28,1.78082586]
[1641764768359,14.0491,142.38,142.28,1.78082586]
[1641764768565,14.0491,142.38,142.26,9.94]
[1641764768761,1.756,142.37,142.26,9.94]
[1641764768959,28.1969771,142.36,142.26,11.72082586]
[1641764769860,38.7377771,142.36,142.26,22.26202586]
[1641764770060,38.4777771,142.36,142.26,22.26202586]
[1641764770263,23.6041,142.35,142.27,0.26]
[1641764770461,0.25,142.34,142.27,0.26]
[1641764770663,0.25,142.34,142.27,2.04082586]
[1641764770962,23.6041,142.35,142.27,2.04082586]
[1641764771662,23.6041,142.35,142.27,12.58132586]
[1641764771862,23.6041,142.35,142.28,0.25]
[1641764772062,27.6869771,142.36,142.28,0.25]
[1641764772265,27.6869771,142.36,142.29,1.78082586]
[1641764772764,27.6869771,142.36,142.28,10.19]
[1641764772765,27.6869771,142.36,142.27,0.26]
[1641764772971,0.25,142.35,142.27,0.26]
[1641764773774,0.25,142.35,142.28,10.5394]
[1641764773972,27.6869771,142.36,142.28,10.5394]
[1641764774173,27.6869771,142.36,142.28,12.32022586]
[1641764774375,27.6869771,142.36,142.29,2.04082586]
[1641764774777,0.25,142.35,142.29,2.04082586]
[1641764774973,100.1371,142.39,142.29,2.04082586]
[1641764775173,110.6755,142.39,142.29,12.57982586]
[1641764775374,3.26,142.38,142.3,1.78082586]
[1641764775977,28.39707098,142.38,142.3,1.78082586]
[1641764776380,23.379,142.37,142.3,1.78082586]
[1641764776678,23.379,142.37,142.29,0.26]
[1641764776879,0.26,142.36,142.29,0.26]
[1641764777478,0.51,142.36,142.29,0.26]
[1641764778780,0.51,142.36,142.29,10.7991]
[1641764779180,0.25,142.36,142.29,10.7991]
[1641764779382,0.25,142.36,142.29,10.5391]
[1641764779584,0.26,142.36,142.29,10.5391]
[1641764779783,0.51,142.36,142.29,10.5391]
[1641764780582,3.51,142.36,142.29,10.5391]
[1641764781384,0.51,142.36,142.29,10.5391]
[1641764781585,0.51,142.36,142.3,0.26]
[1641764781982,0.25,142.36,142.3,0.26]
[1641764782182,25.135,142.37,142.3,12.57902586]
[1641764782383,23.379,142.37,142.31,0.51]
[1641764782782,23.379,142.37,142.31,2.29082586]
[1641764783183,23.379,142.37,142.31,10.86082586]
[1641764783385,73.5886,142.39,142.31,21.39802586]
[1641764783585,142.3237,142.4,142.31,21.39802586]
[1641764783787,93.3,142.4,142.31,21.39802586]
[1641764783986,22.93965563,142.42,142.32,3.0]
[1641764784209,23.7126,142.41,142.35,10.5345]
[1641764784408,26.7126,142.41,142.35,10.5345]
[1641764784809,101.442,142.45,142.36,0.25]
[1641764785011,1.754,142.47,142.36,0.51]
[1641764785209,1.754,142.47,142.41,10.5303]
[1641764785507,98.89034947,142.48,142.36,10.45]
[1641764785707,25.86855013,142.46,142.38,0.25]
[1641764785908,25.86855013,142.46,142.36,10.45]
[1641764786207,25.86855013,142.46,142.37,1.78082586]
[1641764786409,25.86855013,142.46,142.39,10.5311]
[1641764786810,25.86855013,142.46,142.4,0.51]
[1641764787008,25.86855013,142.46,142.4,0.25]
[1641764787609,25.86855013,142.46,142.38,0.26]
[1641764787813,23.583,142.45,142.38,0.26]
[1641764788010,23.833,142.45,142.37,3.26]
[1641764788210,23.833,142.45,142.37,3.51]
[1641764788413,23.833,142.45,142.37,3.26]
[1641764788911,23.833,142.45,142.37,3.0]
[1641764789111,34.3668,142.45,142.37,3.0]
[1641764789315,36.1208,142.45,142.37,3.0]
[1641764789514,0.26,142.44,142.37,3.0]
[1641764789712,0.26,142.44,142.36,9.94]
[1641764790316,23.94248575,142.42,142.36,9.94]
[1641764790514,0.26,142.41,142.36,9.94]
[1641764790815,0.51,142.41,142.32,9.94]
[1641764791113,0.51,142.41,142.32,12.94]
[1641764791513,0.51,142.41,142.32,14.72082586]
[1641764791712,0.51,142.41,142.33,0.25]
[1641764791919,0.26,142.41,142.33,0.25]
[1641764792418,48.73308575,142.42,142.36,10.534]
[1641764792819,48.73308575,142.42,142.37,0.26]
[1641764793218,48.73308575,142.42,142.36,10.534]
[1641764793419,0.51,142.41,142.36,10.534]
[1641764793618,0.25,142.41,142.36,10.534]
[1641764794621,48.73308575,142.42,142.36,10.534]
[1641764794821,48.73308575,142.42,142.37,0.26]
[1641764795020,48.73308575,142.42,142.36,10.534]
[1641764795326,0.25,142.41,142.34,10.5349]
[1641764795924,48.73308575,142.42,142.34,10.5349]
[1641764796126,48.73308575,142.42,142.35,0.51]
[1641764796524,48.73308575,142.42,142.32,49.83312586]
[1641764796724,0.25,142.41,142.32,49.83312586]
[1641764796928,0.51,142.41,142.33,10.5356]
[1641764797427,11.0468,142.41,142.33,10.5356]
[1641764797634,11.0468,142.41,142.3,45.0592]
[1641764797825,29.47551947,142.39,142.31,0.25]
[1641764798026,0.25,142.38,142.31,10.537]
[1641764798226,0.51,142.38,142.31,10.797]
[1641764798727,0.51,142.38,142.31,10.537]
[1641764798926,0.51,142.38,142.29,73.1]
[1641764799126,0.51,142.38,142.3,10.5383]
[1641764799728,0.25,142.38,142.3,10.5383]
[1641764799930,0.51,142.38,142.3,10.5383]
[1641764800527,0.51,142.38,142.31,0.26]
[1641764801829,0.51,142.38,142.31,10.7976]
[1641764802133,0.51,142.38,142.31,10.5376]
[1641764802529,0.51,142.39,142.31,10.5376]
[1641764802729,0.51,142.39,142.32,0.25]
[1641764803130,0.51,142.39,142.32,10.7869]
[1641764803331,0.25,142.39,142.32,10.5369]
[1641764803631,0.25,142.39,142.33,0.51]
[1641764803831,0.25,142.39,142.33,0.25]
[1641764804735,0.25,142.39,142.34,10.5355]
[1641764804933,0.25,142.39,142.35,0.26]
[1641764805432,0.25,142.39,142.34,10.5355]
[1641764805832,0.25,142.39,142.35,0.26]
[1641764806935,0.25,142.39,142.34,10.5355]
[1641764808437,0.51,142.39,142.34,10.5355]
[1641764809143,0.25,142.39,142.34,10.5355]
[1641764810364,31.11202639,142.42,142.35,0.26]
[1641764810564,1.756,142.44,142.35,0.26]
[1641764810766,49.3856,142.45,142.37,10.5332]
[1641764810965,90.4655,142.47,142.38,0.51]
[1641764811166,90.4655,142.47,142.36,9.94]
[1641764811167,78.1793,142.47,142.36,9.94]
[1641764811368,78.1793,142.47,142.38,1.78082586]
[1641764811567,26.365253,142.46,142.38,1.78082586]
[1641764811768,26.365253,142.46,142.39,0.51]
[1641764812369,26.365253,142.46,142.39,0.25]
[1641764812567,26.365253,142.46,142.4,10.5309]
[1641764813969,0.26,142.45,142.4,10.5309]
[1641764814167,126.8124,142.48,142.4,10.5309]
[1641764814368,0.25,142.47,142.41,0.26]
[1641764814567,0.25,142.47,142.41,10.7903]
[1641764815370,116.281,142.48,142.41,10.7903]
[1641764817969,116.281,142.48,142.42,10.7792]
[1641764818173,93.3,142.48,142.42,10.5292]
[1641764819578,93.3,142.48,142.41,0.26]
[1641764819780,0.51,142.47,142.41,0.25]
[1641764819980,0.51,142.47,142.4,10.5305]
[1641764820182,0.51,142.47,142.38,9.94]
[1641764820781,0.25,142.47,142.38,9.94]
[1641764820981,0.25,142.47,142.39,10.7812]
[1641764821183,0.25,142.47,142.39,12.5352]
[1641764821379,0.25,142.47,142.4,0.26]
[1641764822183,0.25,142.47,142.39,1.754]
[1641764822184,1.754,142.46,142.39,1.754]
[1641764822381,0.51,142.45,142.39,1.754]
[1641764822581,1.754,142.46,142.39,1.754]
[1641764822783,0.26,142.47,142.39,1.754]
[1641764822989,0.51,142.47,142.39,1.754]
[1641764823784,0.51,142.47,142.4,0.26]
[1641764824084,0.25,142.47,142.4,0.26]
[1641764824283,0.25,142.47,142.37,5.264]
[1641764824683,0.25,142.47,142.38,9.94]
[1641764824883,0.25,142.47,142.39,0.51]
[1641764825083,0.25,142.47,142.38,9.94]
[1641764825285,1.754,142.46,142.37,3.0]
[1641764825483,0.51,142.45,142.37,3.0]
[1641764826385,0.51,142.45,142.38,0.26]
[1641764826585,0.51,142.45,142.35,3.51]
[1641764826785,0.51,142.46,142.38,10.5319]
[1641764826985,24.4555,142.46,142.38,10.5319]
[1641764827185,24.4555,142.46,142.34,9.94]
[1641764827385,4.754,142.45,142.34,9.94]
[1641764827887,30.82110803,142.43,142.34,20.475]
[1641764828286,0.25,142.42,142.34,20.475]
[1641764828785,0.25,142.42,142.35,10.7942]
[1641764831593,0.51,142.42,142.33,10.5357]
[1641764831793,1.754,142.41,142.32,154.63221553]
[1641764832798,1.754,142.41,142.32,165.16901553]
[1641764832996,27.6266,142.42,142.33,0.26]
[1641764833495,0.51,142.41,142.33,0.26]
[1641764833793,0.51,142.41,142.34,10.5353]
[1641764834894,0.51,142.41,142.35,0.26]
[1641764835094,0.51,142.41,142.34,10.5353]
[1641764835999,0.25,142.41,142.34,10.5353]
[1641764837529,24.6266,142.42,142.34,10.5353]
[1641764837730,22.8706,142.42,142.34,10.5353]
[1641764837932,22.8706,142.42,142.36,10.534]
[1641764838833,0.25,142.41,142.36,10.534]
[1641764839035,22.8706,142.42,142.36,10.534]
[1641764839238,22.3706,142.42,142.36,10.534]
[1641764839434,22.3706,142.42,142.37,0.26]
[1641764839633,22.3706,142.42,142.36,10.534]
[1641764839834,22.3706,142.42,142.35,10.5348]
[1641764840534,0.25,142.41,142.35,10.5348]
[1641764841137,22.3706,142.42,142.35,10.5348]
[1641764841836,22.3706,142.42,142.36,0.26]
[1641764842240,22.3706,142.42,142.35,10.5348]
[1641764842637,0.25,142.41,142.35,10.5348]
[1641764844037,22.3706,142.42,142.35,10.5348]
[1641764844241,22.3706,142.42,142.36,0.26]
[1641764844440,22.3706,142.42,142.36,10.7939]
[1641764846241,22.3706,142.42,142.36,10.5339]
[1641764847443,0.25,142.41,142.37,0.26]
[1641764851047,0.25,142.41,142.34,13.5349]
[1641764851244,0.51,142.41,142.34,13.5349]
[1641764851445,0.51,142.41,142.35,0.26]
[1641764852750,0.25,142.41,142.35,10.5347]
[1641764853450,24.1246,142.42,142.35,10.5347]
[1641764853652,22.3706,142.42,142.36,2.03082586]
[1641764853852,1.98526041,142.43,142.37,10.5331]
[1641764854051,1.98526041,142.44,142.36,10.19]
[1641764854250,1.98526041,142.44,142.37,1.78082586]
[1641764854452,1.98526041,142.44,142.37,2.04082586]
[1641764854853,27.99393572,142.44,142.38,1.78082586]
[1641764855054,27.99393572,142.44,142.38,12.31262586]
[1641764855252,27.99393572,142.44,142.39,0.26]
[1641764855877,0.25,142.43,142.39,0.26]
[1641764856978,0.25,142.43,142.36,22.50412586]
[1641764857179,0.25,142.43,142.36,20.7233]
[1641764857378,0.25,142.43,142.37,0.26]
[1641764858380,0.25,142.43,142.36,20.7233]
[1641764859889,0.51,142.43,142.36,20.4733]
[1641764860082,0.51,142.43,142.36,10.5333]
[1641764860281,2.264,142.43,142.34,10.5348]
[1641764860482,24.9776,142.43,142.34,10.7948]
[1641764860785,26.96286041,142.43,142.34,10.7948]
[1641764861386,26.96286041,142.43,142.32,165.16861553]
[1641764861589,26.96286041,142.43,142.32,233.68281553]
[1641764861786,26.71286041,142.43,142.35,1.78082586]
[1641764862387,26.71286041,142.43,142.32,235.46364139]
[1641764862885,26.71286041,142.43,142.33,0.26]
[1641764863286,26.71286041,142.43,142.33,2.04082586]
[1641764863487,3.73926041,142.43,142.34,12.94]
[1641764863688,1.98526041,142.43,142.34,13.19]
[1641764863988,27.99393572,142.44,142.35,2.04082586]
[1641764864190,27.99393572,142.44,142.36,9.94]
[1641764864387,27.99393572,142.44,142.37,0.26]
[1641764864588,27.99393572,142.44,142.37,11.98082586]
[1641764864988,27.99393572,142.44,142.38,2.03082586]
[1641764865187,27.99393572,142.44,142.38,1.78082586]
[1641764865388,27.99393572,142.44,142.37,10.2]
[1641764865791,27.99393572,142.44,142.37,11.98082586]
[1641764866795,27.99393572,142.44,142.38,10.532]
[1641764868294,0.25,142.43,142.38,10.532]
[1641764868495,27.99393572,142.44,142.38,10.532]
[1641764868697,0.26,142.43,142.38,10.532]
[1641764869800,27.99393572,142.44,142.38,10.532]
[1641764869998,27.99393572,142.44,142.39,0.26]
[1641764870197,27.99393572,142.44,142.38,12.31282586]
[1641764870498,27.99393572,142.44,142.39,0.26]
[1641764871298,46.0545,142.46,142.39,0.26]
[1641764871497,0.25,142.45,142.39,18.9497]
[1641764871900,0.25,142.45,142.4,2.04082586]
[1641764872098,0.25,142.45,142.4,0.26]
[1641764872301,29.92494819,142.45,142.4,0.26]
[1641764872498,29.67494819,142.45,142.4,0.26]
[1641764872699,1.98526041,142.47,142.4,10.791]
[1641764872900,1.98526041,142.46,142.41,2.04082586]
[1641764873102,1.98526041,142.46,142.41,2.29082586]
[1641764873299,1.98526041,142.46,142.42,1.78082586]
[1641764873500,1.98526041,142.46,142.41,10.2]
[1641764873701,25.03100265,142.46,142.41,10.2]
[1641764873902,25.03100265,142.46,142.41,20.7296]
[1641764874329,23.04574224,142.46,142.41,20.7296]
[1641764878934,23.04574224,142.46,142.41,20.4696]
[1641764879132,0.25,142.45,142.41,20.4696]
[1641764880336,23.04574224,142.46,142.41,20.4696]
[1641764881938,23.5267,142.47,142.41,20.4696]
[1641764882141,93.3,142.48,142.44,10.5276]
[1641764884140,24.8588,142.51,142.44,10.5276]
[1641764884345,24.8588,142.51,142.45,2.29082586]
[1641764884542,24.8588,142.51,142.46,10.5262]
[1641764884948,0.25,142.5,142.45,0.26]
[1641764885143,0.25,142.5,142.44,0.26]
[1641764885544,0.25,142.5,142.43,0.51]
[1641764885743,0.25,142.5,142.44,10.5274]
[1641764885942,0.25,142.5,142.45,0.26]
[1641764887644,0.51,142.5,142.43,1.754]
[1641764887845,0.51,142.5,142.42,9.94]
[1641764888045,26.6128,142.51,142.42,9.94]
[1641764888245,3.25,142.5,142.42,9.94]
[1641764889046,13.7803,142.5,142.42,9.94]
[1641764889246,13.7803,142.5,142.37,81.70911884]
[1641764889447,25.5367,142.49,142.36,1.85211884]
[1641764889845,3.25,142.48,142.36,1.85211884]
[1641764890049,1.754,142.47,142.36,1.85211884]
[1641764890245,23.24418429,142.46,142.36,1.85211884]
[1641764890444,0.26,142.45,142.36,1.85211884]
[1641764890647,2.014,142.45,142.34,9.94]
[1641764890845,10.5353,142.43,142.35,10.7846]